[Event "Late Titled Tuesday Blitz February 8 2022"]
[White "Lin, Dachey"]
[Black "Derraugh, Geordie"]
[WhiteFideId "2029650"]
[BlackFideId "2603950"]
[WhiteElo "2734"]
[BlackElo "2116"]
[Result "1-0"]
[Round "01"]
[TimeControl "180+1"]
[Date "2022.02.09"]
[WhiteClock "0:01:03"]
[BlackClock "0:00:03"]

1. g4 {[%clk 0:03:00]}  d5 {[%clk 0:02:59]} 2. Bg2 {[%clk 0:03:00]}  Bxg4 {[%clk 0:02:57]} 3. c4 {[%clk 0:03:00]}  Nf6 {[%clk 0:02:53]} 4. Qb3 {[%clk 0:02:57]}  Nbd7 {[%clk 0:02:39]} 5. cxd5 {[%clk 0:02:57]}  Nc5 {[%clk 0:02:34]} 6. Qb5+ {[%clk 0:02:51]}  Nfd7 {[%clk 0:02:33]} 7. Nc3 {[%clk 0:02:49]}  a6 {[%clk 0:02:30]} 8. Qc4 {[%clk 0:02:49]}  Bh5 {[%clk 0:02:21]} 9. d4 {[%clk 0:02:49]}  b5 {[%clk 0:02:20]} 10. Qb4 {[%clk 0:02:48]}  Nb7 {[%clk 0:02:18]} 11. Qb3 {[%clk 0:02:46]}  Nf6 {[%clk 0:02:07]} 12. e4 {[%clk 0:02:45]}  e6 {[%clk 0:01:40]} 13. dxe6 {[%clk 0:02:31]}  Qxd4 {[%clk 0:01:37]} 14. Be3 {[%clk 0:02:26]}  Qb4 {[%clk 0:01:35]} 15. e5 {[%clk 0:02:22]}  O-O-O {[%clk 0:00:52]} 16. exf6 {[%clk 0:02:15]}  gxf6 {[%clk 0:00:53]} 17. exf7 {[%clk 0:01:59]}  Na5 {[%clk 0:00:32]} 18. Qe6+ {[%clk 0:01:48]}  Kb8 {[%clk 0:00:20]} 19. Qxa6 {[%clk 0:01:45]}  c6 {[%clk 0:00:15]} 20. Qa7+ {[%clk 0:01:37]}  Kc8 {[%clk 0:00:15]} 21. Bh3+ {[%clk 0:01:29]}  Bg4 {[%clk 0:00:15]} 22. Qa8+ {[%clk 0:01:29]}  Kd7 {[%clk 0:00:14]} 23. Rd1+ {[%clk 0:01:28]}  Bd6 {[%clk 0:00:12]} 24. Qa7+ {[%clk 0:01:26]}  Ke6 {[%clk 0:00:11]} 25. Rd4 {[%clk 0:01:22]}  Qxb2 {[%clk 0:00:06]} 26. Bxg4+ {[%clk 0:01:22]}  f5 {[%clk 0:00:07]} 27. Re4+ {[%clk 0:01:16]}  Kf6 {[%clk 0:00:06]} 28. Qd4+ {[%clk 0:01:15]}  Kg6 {[%clk 0:00:05]} 29. Re6+ {[%clk 0:01:14]}  Kxf7 {[%clk 0:00:04]} 30. Qf6+ {[%clk 0:01:02]}  Kg8 {[%clk 0:00:03]} 31. Qxd8+ {[%clk 0:01:03]} 1-0


[Site "https://www.chess.com"]

[Event "Late Titled Tuesday Blitz February 8 2022"]
[White "Marcziter, Dmitrii"]
[Black "Brodowski, Piotr"]
[WhiteFideId "13900765"]
[BlackFideId "1124480"]
[WhiteElo "2155"]
[BlackElo "2422"]
[Result "1-0"]
[Round "01"]
[TimeControl "180+1"]
[Date "2022.02.09"]
[WhiteClock "0:00:28"]
[BlackClock "0:00:12"]

1. d4 {[%clk 0:02:59]}  c5 {[%clk 0:02:57]} 2. d5 {[%clk 0:02:58]}  d6 {[%clk 0:02:55]} 3. c4 {[%clk 0:02:57]}  e5 {[%clk 0:02:54]} 4. e4 {[%clk 0:02:56]}  Be7 {[%clk 0:02:54]} 5. b3 {[%clk 0:02:54]}  Nf6 {[%clk 0:02:53]} 6. Nc3 {[%clk 0:02:54]}  O-O {[%clk 0:02:54]} 7. Bb2 {[%clk 0:02:53]}  a6 {[%clk 0:02:50]} 8. h3 {[%clk 0:02:53]}  b5 {[%clk 0:02:42]} 9. cxb5 {[%clk 0:02:52]}  axb5 {[%clk 0:02:42]} 10. Bxb5 {[%clk 0:02:51]}  Ba6 {[%clk 0:02:42]} 11. Bxa6 {[%clk 0:02:50]}  Nxa6 {[%clk 0:02:43]} 12. Nf3 {[%clk 0:02:48]}  Qa5 {[%clk 0:02:20]} 13. O-O {[%clk 0:02:46]}  Rfb8 {[%clk 0:02:20]} 14. Qe2 {[%clk 0:02:38]}  Nd7 {[%clk 0:02:16]} 15. Nd2 {[%clk 0:02:35]}  Nb6 {[%clk 0:02:04]} 16. a4 {[%clk 0:02:21]}  Bg5 {[%clk 0:01:57]} 17. Nc4 {[%clk 0:02:15]}  Nxc4 {[%clk 0:01:54]} 18. bxc4 {[%clk 0:02:15]}  Rb3 {[%clk 0:01:50]} 19. Nb5 {[%clk 0:02:12]}  Nb4 {[%clk 0:01:26]} 20. Bc1 {[%clk 0:02:06]}  Be7 {[%clk 0:01:23]} 21. Bd2 {[%clk 0:02:03]}  Rb2 {[%clk 0:01:11]} 22. Qd1 {[%clk 0:01:56]}  Qb6 {[%clk 0:01:03]} 23. Bc3 {[%clk 0:01:52]}  Ra2 {[%clk 0:00:59]} 24. Rxa2 {[%clk 0:01:42]}  Nxa2 {[%clk 0:00:59]} 25. Bd2 {[%clk 0:01:42]}  h6 {[%clk 0:00:51]} 26. Qb3 {[%clk 0:01:39]}  Nb4 {[%clk 0:00:51]} 27. Bxb4 {[%clk 0:01:34]}  cxb4 {[%clk 0:00:51]} 28. Qxb4 {[%clk 0:01:30]}  Rc8 {[%clk 0:00:51]} 29. a5 {[%clk 0:01:28]}  Qa6 {[%clk 0:00:51]} 30. Ra1 {[%clk 0:01:25]}  Rc5 {[%clk 0:00:50]} 31. Qb3 {[%clk 0:01:14]}  Bd8 {[%clk 0:00:47]} 32. Qb4 {[%clk 0:01:11]}  Be7 {[%clk 0:00:38]} 33. g3 {[%clk 0:01:11]}  g6 {[%clk 0:00:37]} 34. Kg2 {[%clk 0:01:11]}  Kg7 {[%clk 0:00:37]} 35. h4 {[%clk 0:01:10]}  h5 {[%clk 0:00:37]} 36. Ra3 {[%clk 0:01:09]}  Bd8 {[%clk 0:00:36]} 37. Qc3 {[%clk 0:00:59]}  Bf6 {[%clk 0:00:30]} 38. Qb4 {[%clk 0:00:58]}  Be7 {[%clk 0:00:29]} 39. Ra4 {[%clk 0:00:53]}  Rc8 {[%clk 0:00:22]} 40. Qb2 {[%clk 0:00:49]}  Bf6 {[%clk 0:00:20]} 41. Qa3 {[%clk 0:00:48]}  Be7 {[%clk 0:00:19]} 42. Qb4 {[%clk 0:00:46]}  Rc5 {[%clk 0:00:19]} 43. Kh2 {[%clk 0:00:45]}  Bf6 {[%clk 0:00:19]} 44. Kg1 {[%clk 0:00:45]}  Be7 {[%clk 0:00:19]} 45. Kg2 {[%clk 0:00:46]}  Bd8 {[%clk 0:00:19]} 46. Qd2 {[%clk 0:00:44]}  Bf6 {[%clk 0:00:19]} 47. Qe3 {[%clk 0:00:43]}  Kh7 {[%clk 0:00:18]} 48. f4 {[%clk 0:00:42]}  Kg7 {[%clk 0:00:18]} 49. f5 {[%clk 0:00:40]}  Rc8 {[%clk 0:00:18]} 50. fxg6 {[%clk 0:00:40]}  fxg6 {[%clk 0:00:18]} 51. Qd3 {[%clk 0:00:36]}  Be7 {[%clk 0:00:18]} 52. Ra2 {[%clk 0:00:36]}  Rf8 {[%clk 0:00:17]} 53. Nc7 {[%clk 0:00:35]}  Qa7 {[%clk 0:00:15]} 54. Ne6+ {[%clk 0:00:34]}  Kg8 {[%clk 0:00:14]} 55. Nxf8 {[%clk 0:00:34]}  Bxf8 {[%clk 0:00:15]} 56. Qf3 {[%clk 0:00:34]}  Bh6 {[%clk 0:00:15]} 57. Rf2 {[%clk 0:00:32]}  Bg7 {[%clk 0:00:14]} 58. Qa3 {[%clk 0:00:29]}  Bf8 {[%clk 0:00:13]} 59. a6 {[%clk 0:00:29]}  Be7 {[%clk 0:00:13]} 60. Qa4 {[%clk 0:00:28]}  Kg7 {[%clk 0:00:12]} 61. Qc6 {[%clk 0:00:28]}  Bf8 {[%clk 0:00:11]} 62. Qb7+ {[%clk 0:00:28]}  Qxb7 {[%clk 0:00:12]} 63. axb7 {[%clk 0:00:28]} 1-0


[Site "https://www.chess.com"]

[Event "Late Titled Tuesday Blitz February 8 2022"]
[White "Martin Duque, Jesus"]
[Black "Ladan, Nicholas"]
[WhiteFideId "2208954"]
[BlackFideId "30918855"]
[WhiteElo "2243"]
[BlackElo "2274"]
[Result "1-0"]
[Round "01"]
[TimeControl "180+1"]
[Date "2022.02.09"]
[WhiteClock "0:00:19"]
[BlackClock "0:00:07"]

1. Nf3 {[%clk 0:02:58]}  d5 {[%clk 0:03:00]} 2. c4 {[%clk 0:02:58]}  c6 {[%clk 0:03:00]} 3. e3 {[%clk 0:02:57]}  Nf6 {[%clk 0:03:00]} 4. Nc3 {[%clk 0:02:57]}  Bf5 {[%clk 0:02:55]} 5. b3 {[%clk 0:02:47]}  e6 {[%clk 0:02:53]} 6. Bb2 {[%clk 0:02:47]}  Nbd7 {[%clk 0:02:50]} 7. Nh4 {[%clk 0:02:44]}  Bg6 {[%clk 0:02:49]} 8. Be2 {[%clk 0:02:40]}  Bd6 {[%clk 0:02:48]} 9. O-O {[%clk 0:02:38]}  a5 {[%clk 0:02:35]} 10. a3 {[%clk 0:02:37]}  Qb8 {[%clk 0:02:29]} 11. g3 {[%clk 0:02:36]}  Nc5 {[%clk 0:02:14]} 12. d3 {[%clk 0:02:30]}  e5 {[%clk 0:02:05]} 13. cxd5 {[%clk 0:02:29]}  cxd5 {[%clk 0:02:04]} 14. Nb5 {[%clk 0:02:28]}  O-O {[%clk 0:02:01]} 15. Rc1 {[%clk 0:02:24]}  Ne6 {[%clk 0:01:46]} 16. Nxg6 {[%clk 0:02:22]}  hxg6 {[%clk 0:01:45]} 17. f4 {[%clk 0:02:13]}  exf4 {[%clk 0:01:34]} 18. gxf4 {[%clk 0:02:10]}  g5 {[%clk 0:01:20]} 19. Bxf6 {[%clk 0:01:59]}  gxf6 {[%clk 0:01:17]} 20. Bg4 {[%clk 0:01:55]}  gxf4 {[%clk 0:01:11]} 21. Bxe6 {[%clk 0:01:54]}  fxe6 {[%clk 0:01:08]} 22. Nxd6 {[%clk 0:01:52]}  Qxd6 {[%clk 0:01:07]} 23. Qg4+ {[%clk 0:01:40]}  Kf7 {[%clk 0:01:08]} 24. Qh5+ {[%clk 0:01:40]}  Ke7 {[%clk 0:01:07]} 25. Rxf4 {[%clk 0:01:37]}  Rg8+ {[%clk 0:01:02]} 26. Kh1 {[%clk 0:01:31]}  Rg7 {[%clk 0:00:47]} 27. Qh6 {[%clk 0:01:26]}  Rf7 {[%clk 0:00:40]} 28. Rcf1 {[%clk 0:01:25]}  Raf8 {[%clk 0:00:38]} 29. b4 {[%clk 0:01:24]}  axb4 {[%clk 0:00:35]} 30. Rxb4 {[%clk 0:01:24]}  Qc6 {[%clk 0:00:31]} 31. e4 {[%clk 0:01:12]}  dxe4 {[%clk 0:00:30]} 32. Rc1 {[%clk 0:01:12]}  Rh8 {[%clk 0:00:21]} 33. Qf4 {[%clk 0:00:47]}  Qd5 {[%clk 0:00:13]} 34. Rc7+ {[%clk 0:00:45]}  Kf8 {[%clk 0:00:13]} 35. Rxf7+ {[%clk 0:00:43]}  Kxf7 {[%clk 0:00:14]} 36. Qc7+ {[%clk 0:00:43]}  Kg6 {[%clk 0:00:14]} 37. Qg3+ {[%clk 0:00:41]}  Qg5 {[%clk 0:00:14]} 38. Qf2 {[%clk 0:00:26]}  e3 {[%clk 0:00:14]} 39. Qe2 {[%clk 0:00:22]}  Qd5+ {[%clk 0:00:14]} 40. Kg1 {[%clk 0:00:21]}  Qg5+ {[%clk 0:00:14]} 41. Rg4 {[%clk 0:00:21]}  Rh5 {[%clk 0:00:10]} 42. Rxg5+ {[%clk 0:00:21]}  Rxg5+ {[%clk 0:00:11]} 43. Kh1 {[%clk 0:00:20]}  Re5 {[%clk 0:00:11]} 44. d4 {[%clk 0:00:20]}  Re4 {[%clk 0:00:11]} 45. Qd3 {[%clk 0:00:20]}  Kf5 {[%clk 0:00:12]} 46. Qe2 {[%clk 0:00:18]}  Kf4 {[%clk 0:00:12]} 47. Kg2 {[%clk 0:00:19]}  Rxd4 {[%clk 0:00:12]} 48. Qf3+ {[%clk 0:00:19]}  Ke5 {[%clk 0:00:13]} 49. Qxe3+ {[%clk 0:00:20]}  Re4 {[%clk 0:00:14]} 50. Qc3+ {[%clk 0:00:20]}  Kf5 {[%clk 0:00:14]} 51. Qc5+ {[%clk 0:00:19]}  e5 {[%clk 0:00:13]} 52. Qb5 {[%clk 0:00:18]}  Rg4+ {[%clk 0:00:12]} 53. Kf3 {[%clk 0:00:17]}  Rf4+ {[%clk 0:00:13]} 54. Ke3 {[%clk 0:00:17]}  Rh4 {[%clk 0:00:13]} 55. Qd7+ {[%clk 0:00:17]}  Kg5 {[%clk 0:00:13]} 56. h3 {[%clk 0:00:18]}  Rd4 {[%clk 0:00:11]} 57. Qxb7 {[%clk 0:00:18]}  Rh4 {[%clk 0:00:10]} 58. Qg7+ {[%clk 0:00:18]}  Kf5 {[%clk 0:00:10]} 59. Qd7+ {[%clk 0:00:18]}  Kg5 {[%clk 0:00:11]} 60. Kf3 {[%clk 0:00:18]}  e4+ {[%clk 0:00:10]} 61. Kg3 {[%clk 0:00:19]}  Rh5 {[%clk 0:00:07]} 62. Qg7+ {[%clk 0:00:18]}  Kf5 {[%clk 0:00:07]} 63. Qg4+ {[%clk 0:00:19]} 1-0


[Site "https://www.chess.com"]

[Event "Late Titled Tuesday Blitz February 8 2022"]
[White "Martinez Reyes, Pedro Ramon"]
[Black "Nogerbek, Kazybek"]
[WhiteFideId "3901807"]
[BlackFideId "13710427"]
[WhiteElo "2410"]
[BlackElo "2478"]
[Result "1/2-1/2"]
[Round "01"]
[TimeControl "180+1"]
[Date "2022.02.09"]
[WhiteClock "0:00:46"]
[BlackClock "0:00:04"]

1. f4 {[%clk 0:02:57]}  d5 {[%clk 0:02:55]} 2. Nf3 {[%clk 0:02:57]}  Bg4 {[%clk 0:02:51]} 3. e3 {[%clk 0:02:56]}  Nd7 {[%clk 0:02:45]} 4. Be2 {[%clk 0:02:56]}  c6 {[%clk 0:02:44]} 5. b3 {[%clk 0:02:53]}  Bxf3 {[%clk 0:02:44]} 6. Bxf3 {[%clk 0:02:53]}  e5 {[%clk 0:02:45]} 7. O-O {[%clk 0:02:48]}  Bd6 {[%clk 0:02:43]} 8. fxe5 {[%clk 0:02:42]}  Nxe5 {[%clk 0:02:40]} 9. Bb2 {[%clk 0:02:39]}  Nf6 {[%clk 0:02:39]} 10. Nc3 {[%clk 0:02:32]}  Qc7 {[%clk 0:02:39]} 11. h3 {[%clk 0:02:23]}  O-O-O {[%clk 0:02:36]} 12. Ne2 {[%clk 0:02:12]}  h5 {[%clk 0:02:35]} 13. Nd4 {[%clk 0:02:12]}  g6 {[%clk 0:02:25]} 14. Qe2 {[%clk 0:01:49]}  Ne4 {[%clk 0:02:04]} 15. Bxe4 {[%clk 0:01:46]}  dxe4 {[%clk 0:02:05]} 16. Rf6 {[%clk 0:01:39]}  Be7 {[%clk 0:01:55]} 17. Rf4 {[%clk 0:01:37]}  f5 {[%clk 0:01:30]} 18. Ne6 {[%clk 0:01:36]}  Qd6 {[%clk 0:01:31]} 19. Nxd8 {[%clk 0:01:36]}  Rxd8 {[%clk 0:01:23]} 20. Bc3 {[%clk 0:01:32]}  h4 {[%clk 0:01:18]} 21. Qf2 {[%clk 0:01:26]}  Rh8 {[%clk 0:00:54]} 22. Rxf5 {[%clk 0:01:23]}  gxf5 {[%clk 0:00:41]} 23. Qxf5+ {[%clk 0:01:24]}  Qd7 {[%clk 0:00:42]} 24. Qxd7+ {[%clk 0:01:19]}  Kxd7 {[%clk 0:00:43]} 25. Bxe5 {[%clk 0:01:19]}  Rh5 {[%clk 0:00:44]} 26. Bc3 {[%clk 0:01:19]}  b5 {[%clk 0:00:43]} 27. b4 {[%clk 0:01:16]}  c5 {[%clk 0:00:40]} 28. a3 {[%clk 0:01:15]}  Bd6 {[%clk 0:00:35]} 29. Rf1 {[%clk 0:01:15]}  Ke6 {[%clk 0:00:35]} 30. Rf6+ {[%clk 0:01:14]}  Kd7 {[%clk 0:00:34]} 31. Rf7+ {[%clk 0:01:14]}  Ke6 {[%clk 0:00:31]} 32. Rf6+ {[%clk 0:01:04]}  Kd7 {[%clk 0:00:31]} 33. Kf1 {[%clk 0:01:04]}  Rg5 {[%clk 0:00:25]} 34. Rf7+ {[%clk 0:01:00]}  Ke6 {[%clk 0:00:25]} 35. Rf6+ {[%clk 0:00:59]}  Kd7 {[%clk 0:00:24]} 36. Rf2 {[%clk 0:00:59]}  Bg3 {[%clk 0:00:22]} 37. Rf7+ {[%clk 0:00:59]}  Ke6 {[%clk 0:00:22]} 38. Rf6+ {[%clk 0:00:58]}  Kd7 {[%clk 0:00:23]} 39. bxc5 {[%clk 0:00:58]}  Rxc5 {[%clk 0:00:24]} 40. Rf7+ {[%clk 0:00:57]}  Ke6 {[%clk 0:00:24]} 41. Rf6+ {[%clk 0:00:58]}  Kd7 {[%clk 0:00:24]} 42. Ke2 {[%clk 0:00:57]}  Rc4 {[%clk 0:00:22]} 43. Ra6 {[%clk 0:00:55]}  Rc7 {[%clk 0:00:17]} 44. Rg6 {[%clk 0:00:56]}  Rc5 {[%clk 0:00:16]} 45. Rg4 {[%clk 0:00:55]}  Rf5 {[%clk 0:00:16]} 46. Rxe4 {[%clk 0:00:55]}  Rf2+ {[%clk 0:00:16]} 47. Kd3 {[%clk 0:00:56]}  Rxg2 {[%clk 0:00:17]} 48. Bf6 {[%clk 0:00:56]}  Be1 {[%clk 0:00:16]} 49. Rd4+ {[%clk 0:00:54]}  Ke6 {[%clk 0:00:16]} 50. Bxh4 {[%clk 0:00:51]}  Rxd2+ {[%clk 0:00:17]} 51. Ke4 {[%clk 0:00:51]}  Rxd4+ {[%clk 0:00:17]} 52. Kxd4 {[%clk 0:00:51]}  Bxh4 {[%clk 0:00:18]} 53. Kc5 {[%clk 0:00:52]}  Bf2 {[%clk 0:00:11]} 54. Kxb5 {[%clk 0:00:52]}  Bxe3 {[%clk 0:00:12]} 55. c4 {[%clk 0:00:51]}  Kd6 {[%clk 0:00:12]} 56. h4 {[%clk 0:00:51]}  Bc5 {[%clk 0:00:10]} 57. h5 {[%clk 0:00:51]}  Be3 {[%clk 0:00:10]} 58. Ka6 {[%clk 0:00:51]}  Kc6 {[%clk 0:00:10]} 59. a4 {[%clk 0:00:49]}  Kc7 {[%clk 0:00:07]} 60. h6 {[%clk 0:00:48]}  Kd6 {[%clk 0:00:06]} 61. h7 {[%clk 0:00:48]}  Bd4 {[%clk 0:00:06]} 62. a5 {[%clk 0:00:48]}  Kc6 {[%clk 0:00:04]} 63. c5 {[%clk 0:00:46]}  Kxc5 {[%clk 0:00:03]} 64. Kxa7 {[%clk 0:00:46]}  Kb5+ {[%clk 0:00:04]} 65. Kb7 {[%clk 0:00:46]}  Kxa5 {[%clk 0:00:04]} 66. h8=Q {[%clk 0:00:46]}  Bxh8 {[%clk 0:00:04]} 1/2-1/2


[Site "https://www.chess.com"]

[Event "Late Titled Tuesday Blitz February 8 2022"]
[White "Medeiros Jr, Francisco De Assis"]
[Black "Gubajdullin, Alexei"]
[WhiteFideId "2114267"]
[BlackFideId "4141202"]
[WhiteElo "1998"]
[BlackElo "2268"]
[Result "0-1"]
[Round "01"]
[TimeControl "180+1"]
[Date "2022.02.09"]
[WhiteClock "0:00:06"]
[BlackClock "0:00:55"]

1. d4 {[%clk 0:02:57]}  Nf6 {[%clk 0:02:54]} 2. Nf3 {[%clk 0:02:56]}  g6 {[%clk 0:02:53]} 3. Bg5 {[%clk 0:02:56]}  Bg7 {[%clk 0:02:52]} 4. Nbd2 {[%clk 0:02:56]}  d5 {[%clk 0:02:51]} 5. e3 {[%clk 0:02:56]}  O-O {[%clk 0:02:51]} 6. Bd3 {[%clk 0:02:57]}  c5 {[%clk 0:02:51]} 7. c3 {[%clk 0:02:57]}  b6 {[%clk 0:02:49]} 8. O-O {[%clk 0:02:57]}  Ba6 {[%clk 0:02:49]} 9. Bxa6 {[%clk 0:02:55]}  Nxa6 {[%clk 0:02:48]} 10. Qa4 {[%clk 0:02:56]}  Qc8 {[%clk 0:02:47]} 11. Rac1 {[%clk 0:02:45]}  Qb7 {[%clk 0:02:46]} 12. Ne5 {[%clk 0:02:42]}  Rac8 {[%clk 0:02:39]} 13. Bxf6 {[%clk 0:02:24]}  exf6 {[%clk 0:02:35]} 14. Nef3 {[%clk 0:02:18]}  Rfe8 {[%clk 0:02:34]} 15. Rfe1 {[%clk 0:02:16]}  f5 {[%clk 0:02:31]} 16. g3 {[%clk 0:02:09]}  Nb8 {[%clk 0:02:30]} 17. b4 {[%clk 0:02:02]}  Nd7 {[%clk 0:02:20]} 18. bxc5 {[%clk 0:01:52]}  bxc5 {[%clk 0:02:20]} 19. Rb1 {[%clk 0:01:53]}  Qc7 {[%clk 0:02:19]} 20. Rb2 {[%clk 0:01:47]}  Nb6 {[%clk 0:02:04]} 21. Qa6 {[%clk 0:01:42]}  Qd7 {[%clk 0:01:53]} 22. Reb1 {[%clk 0:01:39]}  f4 {[%clk 0:01:47]} 23. gxf4 {[%clk 0:01:26]}  Nc4 {[%clk 0:01:46]} 24. Rb7 {[%clk 0:01:04]}  Qg4+ {[%clk 0:01:45]} 25. Kf1 {[%clk 0:00:56]}  Rxe3 {[%clk 0:01:35]} 26. Nxc4 {[%clk 0:00:37]}  Rxf3 {[%clk 0:01:24]} 27. Ne3 {[%clk 0:00:20]}  Qh3+ {[%clk 0:01:17]} 28. Ke2 {[%clk 0:00:20]}  Re8 {[%clk 0:01:16]} 29. Qd3 {[%clk 0:00:16]}  c4 {[%clk 0:01:09]} 30. Qd2 {[%clk 0:00:16]}  Rxf4 {[%clk 0:01:06]} 31. Rg1 {[%clk 0:00:15]}  Qf3+ {[%clk 0:01:05]} 32. Ke1 {[%clk 0:00:15]}  Rfe4 {[%clk 0:01:02]} 33. Rg3 {[%clk 0:00:13]}  Qh1+ {[%clk 0:01:02]} 34. Ke2 {[%clk 0:00:14]}  Bh6 {[%clk 0:01:01]} 35. Rf3 {[%clk 0:00:09]}  f5 {[%clk 0:00:59]} 36. Rb2 {[%clk 0:00:07]}  f4 {[%clk 0:00:57]} 37. Rb7 {[%clk 0:00:05]}  fxe3 {[%clk 0:00:56]} 38. Rxe3 {[%clk 0:00:06]}  Rxe3+ {[%clk 0:00:56]} 39. Qxe3 {[%clk 0:00:06]}  Rxe3+ {[%clk 0:00:55]} 40. fxe3 {[%clk 0:00:06]}  Qxh2+ {[%clk 0:00:55]} 0-1


[Site "https://www.chess.com"]

[Event "Late Titled Tuesday Blitz February 8 2022"]
[White "Meduri, Aakaash"]
[Black "Garcia Martin, Marta"]
[WhiteFideId "2032252"]
[BlackFideId "32084030"]
[WhiteElo "2047"]
[BlackElo "2102"]
[Result "1-0"]
[Round "01"]
[TimeControl "180+1"]
[Date "2022.02.09"]
[WhiteClock "0:00:31"]
[BlackClock "0:00:04"]

1. d4 {[%clk 0:02:58]}  b6 {[%clk 0:02:59]} 2. a4 {[%clk 0:02:57]}  a6 {[%clk 0:02:52]} 3. a5 {[%clk 0:02:53]}  b5 {[%clk 0:02:51]} 4. e4 {[%clk 0:02:51]}  Bb7 {[%clk 0:02:52]} 5. d5 {[%clk 0:02:49]}  e6 {[%clk 0:02:52]} 6. Nc3 {[%clk 0:02:49]}  Nf6 {[%clk 0:02:49]} 7. Bg5 {[%clk 0:02:48]}  h6 {[%clk 0:02:46]} 8. Bxf6 {[%clk 0:02:44]}  Qxf6 {[%clk 0:02:46]} 9. Nf3 {[%clk 0:02:44]}  Bb4 {[%clk 0:02:39]} 10. e5 {[%clk 0:02:42]}  Qe7 {[%clk 0:02:33]} 11. Qd4 {[%clk 0:02:27]}  Bxd5 {[%clk 0:02:28]} 12. Be2 {[%clk 0:02:23]}  Nc6 {[%clk 0:02:19]} 13. Qg4 {[%clk 0:02:20]}  O-O {[%clk 0:02:13]} 14. O-O-O {[%clk 0:02:07]}  Bxc3 {[%clk 0:02:11]} 15. bxc3 {[%clk 0:02:03]}  Qa3+ {[%clk 0:02:08]} 16. Kd2 {[%clk 0:02:03]}  Rad8 {[%clk 0:01:29]} 17. Bd3 {[%clk 0:02:01]}  d6 {[%clk 0:01:15]} 18. Rde1 {[%clk 0:01:49]}  Qxa5 {[%clk 0:00:50]} 19. h4 {[%clk 0:01:30]}  b4 {[%clk 0:00:44]} 20. exd6 {[%clk 0:01:04]}  bxc3+ {[%clk 0:00:42]} 21. Ke2 {[%clk 0:01:04]}  Bxf3+ {[%clk 0:00:38]} 22. gxf3 {[%clk 0:00:55]}  Ne5 {[%clk 0:00:37]} 23. Qh5 {[%clk 0:00:56]}  Rxd6 {[%clk 0:00:29]} 24. Rhg1 {[%clk 0:00:55]}  Qd5 {[%clk 0:00:20]} 25. Rd1 {[%clk 0:00:41]}  Nxd3 {[%clk 0:00:13]} 26. Qxh6 {[%clk 0:00:40]}  Qe5+ {[%clk 0:00:10]} 27. Kf1 {[%clk 0:00:40]}  Nf4 {[%clk 0:00:08]} 28. Re1 {[%clk 0:00:39]}  Qd4 {[%clk 0:00:05]} 29. Rg4 {[%clk 0:00:33]}  e5 {[%clk 0:00:04]} 30. Qxg7# {[%clk 0:00:31]} 1-0


[Site "https://www.chess.com"]

[Event "Late Titled Tuesday Blitz February 8 2022"]
[White "Morris-Suzuki, Sophie"]
[Black "Makarian, Rudik"]
[WhiteFideId "30922615"]
[BlackFideId "44105681"]
[WhiteElo "2468"]
[BlackElo "2486"]
[Result "0-1"]
[Round "01"]
[TimeControl "180+1"]
[Date "2022.02.09"]
[WhiteClock "0:00:05"]
[BlackClock "0:01:05"]

1. d4 {[%clk 0:03:00]}  f5 {[%clk 0:02:53]} 2. c4 {[%clk 0:03:01]}  Nf6 {[%clk 0:02:54]} 3. Nc3 {[%clk 0:03:01]}  e6 {[%clk 0:02:53]} 4. g3 {[%clk 0:03:01]}  Bb4 {[%clk 0:02:54]} 5. Bg2 {[%clk 0:03:01]}  O-O {[%clk 0:02:54]} 6. Nf3 {[%clk 0:03:02]}  b6 {[%clk 0:02:53]} 7. O-O {[%clk 0:03:02]}  Bb7 {[%clk 0:02:53]} 8. Qc2 {[%clk 0:03:01]}  Bxc3 {[%clk 0:02:48]} 9. Qxc3 {[%clk 0:03:01]}  d6 {[%clk 0:02:41]} 10. b3 {[%clk 0:02:58]}  Nbd7 {[%clk 0:02:40]} 11. Bb2 {[%clk 0:02:59]}  Qe7 {[%clk 0:02:41]} 12. Qc2 {[%clk 0:02:54]}  a5 {[%clk 0:02:39]} 13. a3 {[%clk 0:02:54]}  Ne4 {[%clk 0:02:31]} 14. Nd2 {[%clk 0:02:50]}  Nxd2 {[%clk 0:02:27]} 15. Qxd2 {[%clk 0:02:32]}  Bxg2 {[%clk 0:02:24]} 16. Kxg2 {[%clk 0:02:33]}  a4 {[%clk 0:02:21]} 17. b4 {[%clk 0:02:32]}  Nf6 {[%clk 0:02:21]} 18. Qc2 {[%clk 0:02:28]}  Qd7 {[%clk 0:02:20]} 19. Rac1 {[%clk 0:02:20]}  b5 {[%clk 0:01:59]} 20. cxb5 {[%clk 0:02:17]}  Qxb5 {[%clk 0:02:00]} 21. Qxc7 {[%clk 0:02:13]}  Qxe2 {[%clk 0:02:00]} 22. Rc2 {[%clk 0:02:13]}  Qe4+ {[%clk 0:01:59]} 23. f3 {[%clk 0:01:50]}  Qd5 {[%clk 0:01:59]} 24. Qc4 {[%clk 0:01:44]}  Kf7 {[%clk 0:01:52]} 25. Re1 {[%clk 0:01:29]}  Rac8 {[%clk 0:01:50]} 26. Qxc8 {[%clk 0:01:28]}  Rxc8 {[%clk 0:01:51]} 27. Rxc8 {[%clk 0:01:28]}  Qb3 {[%clk 0:01:48]} 28. Re2 {[%clk 0:01:10]}  Nd5 {[%clk 0:01:45]} 29. Rc6 {[%clk 0:00:52]}  Ne3+ {[%clk 0:01:35]} 30. Kh3 {[%clk 0:00:36]}  Qd3 {[%clk 0:01:31]} 31. Rf2 {[%clk 0:00:28]}  f4 {[%clk 0:01:28]} 32. Rc3 {[%clk 0:00:25]}  Qf5+ {[%clk 0:01:20]} 33. g4 {[%clk 0:00:25]}  Qg5 {[%clk 0:01:18]} 34. Rxe3 {[%clk 0:00:13]}  fxe3 {[%clk 0:01:19]} 35. Re2 {[%clk 0:00:13]}  Qb5 {[%clk 0:01:14]} 36. Rxe3 {[%clk 0:00:12]}  Qf1+ {[%clk 0:01:14]} 37. Kg3 {[%clk 0:00:12]}  Qg1+ {[%clk 0:01:13]} 38. Kf4 {[%clk 0:00:12]}  g5+ {[%clk 0:01:14]} 39. Ke4 {[%clk 0:00:12]}  Qb1+ {[%clk 0:01:07]} 40. Rd3 {[%clk 0:00:10]}  d5+ {[%clk 0:01:07]} 41. Ke5 {[%clk 0:00:05]}  Qxd3 {[%clk 0:01:07]} 42. Bc1 {[%clk 0:00:06]}  Qxf3 {[%clk 0:01:06]} 43. Bxg5 {[%clk 0:00:06]}  Qxa3 {[%clk 0:01:06]} 44. h4 {[%clk 0:00:05]}  Qxb4 {[%clk 0:01:06]} 45. h5 {[%clk 0:00:05]}  Qb8# {[%clk 0:01:05]} 0-1


[Site "https://www.chess.com"]